[Event "Titled Tuesday Blitz May 4 2021"]
[White "Remizov, Yaroslav"]
[Black "Trent, Lawrence"]
[WhiteFideId "34134015"]
[BlackFideId "408638"]
[WhiteElo "2367"]
[BlackElo "2474"]
[Result "0-1"]
[Round "07"]
[TimeControl "180+1"]
[Date "2021.05.04"]
[WhiteClock "0:00:02"]
[BlackClock "0:01:09"]

1. Nc3 {[%clk 0:02:09]}  g6 {[%clk 0:03:00]} 2. e4 {[%clk 0:02:09]}  Bg7 {[%clk 0:02:56]} 3. g3 {[%clk 0:02:09]}  c6 {[%clk 0:02:54]} 4. Bg2 {[%clk 0:02:09]}  d6 {[%clk 0:02:54]} 5. d4 {[%clk 0:02:08]}  Nf6 {[%clk 0:02:55]} 6. Nge2 {[%clk 0:02:08]}  O-O {[%clk 0:02:55]} 7. O-O {[%clk 0:02:08]}  b5 {[%clk 0:02:55]} 8. a3 {[%clk 0:02:04]}  a6 {[%clk 0:02:52]} 9. Re1 {[%clk 0:02:04]}  Nbd7 {[%clk 0:02:52]} 10. h3 {[%clk 0:02:04]}  e5 {[%clk 0:02:51]} 11. Be3 {[%clk 0:02:04]}  Qc7 {[%clk 0:02:51]} 12. Qd2 {[%clk 0:02:04]}  Bb7 {[%clk 0:02:51]} 13. Rad1 {[%clk 0:02:04]}  Rad8 {[%clk 0:02:50]} 14. dxe5 {[%clk 0:01:59]}  Nxe5 {[%clk 0:02:49]} 15. b3 {[%clk 0:01:59]}  Rfe8 {[%clk 0:02:48]} 16. f4 {[%clk 0:01:58]}  Ned7 {[%clk 0:02:49]} 17. Qxd6 {[%clk 0:01:58]}  Qxd6 {[%clk 0:02:48]} 18. Rxd6 {[%clk 0:01:57]}  Bf8 {[%clk 0:02:49]} 19. Rd2 {[%clk 0:01:55]}  Bxa3 {[%clk 0:02:48]} 20. Red1 {[%clk 0:01:54]}  Bb4 {[%clk 0:02:45]} 21. Bd4 {[%clk 0:01:40]}  Rc8 {[%clk 0:02:35]} 22. Bxf6 {[%clk 0:01:26]}  Nxf6 {[%clk 0:02:35]} 23. e5 {[%clk 0:01:27]}  Nd5 {[%clk 0:02:33]} 24. Rd3 {[%clk 0:01:26]}  f6 {[%clk 0:02:27]} 25. Nxd5 {[%clk 0:01:11]}  cxd5 {[%clk 0:02:25]} 26. c3 {[%clk 0:01:11]}  Bc5+ {[%clk 0:02:23]} 27. Kf1 {[%clk 0:01:10]}  fxe5 {[%clk 0:02:23]} 28. Bxd5+ {[%clk 0:01:11]}  Bxd5 {[%clk 0:02:23]} 29. Rxd5 {[%clk 0:01:12]}  exf4 {[%clk 0:02:18]} 30. Nxf4 {[%clk 0:01:12]}  Be3 {[%clk 0:02:18]} 31. R1d3 {[%clk 0:01:04]}  Bxf4 {[%clk 0:02:15]} 32. gxf4 {[%clk 0:01:04]}  Rf8 {[%clk 0:02:13]} 33. Rf3 {[%clk 0:01:03]}  Rc6 {[%clk 0:02:11]} 34. Kg2 {[%clk 0:01:00]}  Rfc8 {[%clk 0:02:11]} 35. Rdd3 {[%clk 0:00:59]}  Rc5 {[%clk 0:02:06]} 36. Kg3 {[%clk 0:00:57]}  a5 {[%clk 0:02:07]} 37. Kg4 {[%clk 0:00:56]}  a4 {[%clk 0:02:07]} 38. bxa4 {[%clk 0:00:56]}  bxa4 {[%clk 0:02:08]} 39. Rd4 {[%clk 0:00:54]}  Ra8 {[%clk 0:02:06]} 40. Rd2 {[%clk 0:00:53]}  a3 {[%clk 0:02:04]} 41. Ra2 {[%clk 0:00:53]}  Rc4 {[%clk 0:02:04]} 42. Rd3 {[%clk 0:00:52]}  Kg7 {[%clk 0:02:02]} 43. h4 {[%clk 0:00:43]}  h5+ {[%clk 0:01:59]} 44. Kg3 {[%clk 0:00:42]}  Raa4 {[%clk 0:01:58]} 45. Rf3 {[%clk 0:00:41]}  Ra5 {[%clk 0:01:57]} 46. Rd3 {[%clk 0:00:36]}  Raa4 {[%clk 0:01:57]} 47. Rd7+ {[%clk 0:00:35]}  Kh6 {[%clk 0:01:56]} 48. Rd3 {[%clk 0:00:34]}  Rxf4 {[%clk 0:01:55]} 49. c4 {[%clk 0:00:34]}  Rg4+ {[%clk 0:01:54]} 50. Kf3 {[%clk 0:00:32]}  Raxc4 {[%clk 0:01:53]} 51. Rdxa3 {[%clk 0:00:28]}  Rxh4 {[%clk 0:01:53]} 52. Ra8 {[%clk 0:00:28]}  Rc3+ {[%clk 0:01:50]} 53. Kg2 {[%clk 0:00:28]}  Rf4 {[%clk 0:01:49]} 54. R2a5 {[%clk 0:00:27]}  Rd4 {[%clk 0:01:40]} 55. Kf2 {[%clk 0:00:20]}  Rd2+ {[%clk 0:01:40]} 56. Ke1 {[%clk 0:00:20]}  Rb2 {[%clk 0:01:40]} 57. Kd1 {[%clk 0:00:16]}  Rg2 {[%clk 0:01:34]} 58. Rh8+ {[%clk 0:00:13]}  Kg7 {[%clk 0:01:33]} 59. Raa8 {[%clk 0:00:11]}  Rh3 {[%clk 0:01:32]} 60. Rhg8+ {[%clk 0:00:10]}  Kf6 {[%clk 0:01:31]} 61. Rgf8+ {[%clk 0:00:10]}  Kg5 {[%clk 0:01:31]} 62. Ra5+ {[%clk 0:00:10]}  Kh6 {[%clk 0:01:31]} 63. Rf1 {[%clk 0:00:09]}  Rhh2 {[%clk 0:01:28]} 64. Rd5 {[%clk 0:00:06]}  Ra2 {[%clk 0:01:27]} 65. Rc5 {[%clk 0:00:05]}  Ra1+ {[%clk 0:01:27]} 66. Rc1 {[%clk 0:00:06]}  Rxc1+ {[%clk 0:01:28]} 67. Kxc1 {[%clk 0:00:07]}  h4 {[%clk 0:01:28]} 68. Kd1 {[%clk 0:00:06]}  Kh5 {[%clk 0:01:28]} 69. Rf8 {[%clk 0:00:06]}  Kg4 {[%clk 0:01:27]} 70. Ke1 {[%clk 0:00:07]}  g5 {[%clk 0:01:26]} 71. Kf1 {[%clk 0:00:07]}  Kg3 {[%clk 0:01:23]} 72. Kg1 {[%clk 0:00:04]}  Ra2 {[%clk 0:01:23]} 73. Rf1 {[%clk 0:00:05]}  g4 {[%clk 0:01:21]} 74. Rc1 {[%clk 0:00:04]}  Rg2+ {[%clk 0:01:20]} 75. Kh1 {[%clk 0:00:04]}  Rf2 {[%clk 0:01:21]} 76. Rg1+ {[%clk 0:00:02]}  Kf3 {[%clk 0:01:19]} 77. Rc1 {[%clk 0:00:02]}  g3 {[%clk 0:01:17]} 78. Kg1 {[%clk 0:00:02]}  Rg2+ {[%clk 0:01:16]} 79. Kh1 {[%clk 0:00:02]}  Rh2+ {[%clk 0:01:16]} 80. Kg1 {[%clk 0:00:02]}  Re2 {[%clk 0:01:15]} 81. Rc3+ {[%clk 0:00:02]}  Re3 {[%clk 0:01:16]} 82. Rc1 {[%clk 0:00:02]}  h3 {[%clk 0:01:12]} 83. Rf1+ {[%clk 0:00:02]}  Kg4 {[%clk 0:01:11]} 84. Ra1 {[%clk 0:00:02]}  h2+ {[%clk 0:01:09]} 0-1


[Site "https://www.chess.com"]

[Event "Titled Tuesday Blitz May 4 2021"]
[White "Remolar Gallen, Jose"]
[Black "Kostiukov, Alexandr"]
[WhiteFideId "2215187"]
[BlackFideId "14108100"]
[WhiteElo "2203"]
[BlackElo "2240"]
[Result "1-0"]
[Round "07"]
[TimeControl "180+1"]
[Date "2021.05.04"]
[WhiteClock "0:00:09"]
[BlackClock "0:00:02"]

1. d4 {[%clk 0:03:00]}  g6 {[%clk 0:02:47]} 2. e4 {[%clk 0:02:58]}  Bg7 {[%clk 0:02:44]} 3. Nc3 {[%clk 0:02:59]}  d6 {[%clk 0:02:42]} 4. f4 {[%clk 0:02:57]}  Nf6 {[%clk 0:02:37]} 5. Nf3 {[%clk 0:02:57]}  O-O {[%clk 0:02:37]} 6. Bd3 {[%clk 0:02:57]}  c5 {[%clk 0:02:36]} 7. dxc5 {[%clk 0:02:50]}  dxc5 {[%clk 0:02:37]} 8. O-O {[%clk 0:02:50]}  Nc6 {[%clk 0:02:37]} 9. Be3 {[%clk 0:02:49]}  Nd4 {[%clk 0:02:36]} 10. Ne2 {[%clk 0:02:45]}  Ng4 {[%clk 0:02:33]} 11. Bc1 {[%clk 0:02:31]}  Nxf3+ {[%clk 0:02:29]} 12. gxf3 {[%clk 0:02:25]}  Nf6 {[%clk 0:02:19]} 13. Be3 {[%clk 0:02:19]}  b6 {[%clk 0:02:14]} 14. Qe1 {[%clk 0:01:43]}  Nh5 {[%clk 0:02:10]} 15. Rd1 {[%clk 0:01:39]}  Qc7 {[%clk 0:02:07]} 16. c3 {[%clk 0:01:30]}  Bh3 {[%clk 0:01:49]} 17. Rf2 {[%clk 0:01:27]}  c4 {[%clk 0:01:47]} 18. Bc2 {[%clk 0:01:24]}  Rad8 {[%clk 0:01:47]} 19. Rxd8 {[%clk 0:01:11]}  Rxd8 {[%clk 0:01:47]} 20. Qc1 {[%clk 0:01:12]}  a6 {[%clk 0:01:22]} 21. Ng3 {[%clk 0:00:47]}  Nf6 {[%clk 0:01:09]} 22. Rd2 {[%clk 0:00:45]}  h5 {[%clk 0:01:05]} 23. Qd1 {[%clk 0:00:43]}  Rxd2 {[%clk 0:01:04]} 24. Qxd2 {[%clk 0:00:44]}  h4 {[%clk 0:01:04]} 25. Ne2 {[%clk 0:00:44]}  Nh5 {[%clk 0:00:49]} 26. Qd5 {[%clk 0:00:28]}  Bh6 {[%clk 0:00:38]} 27. e5 {[%clk 0:00:28]}  Be6 {[%clk 0:00:23]} 28. Qe4 {[%clk 0:00:26]}  Bf5 {[%clk 0:00:20]} 29. Qa8+ {[%clk 0:00:26]}  Kh7 {[%clk 0:00:14]} 30. Bxf5 {[%clk 0:00:26]}  gxf5 {[%clk 0:00:15]} 31. Qxa6 {[%clk 0:00:18]}  Qd7 {[%clk 0:00:14]} 32. Qxc4 {[%clk 0:00:16]}  Qd1+ {[%clk 0:00:13]} 33. Kf2 {[%clk 0:00:15]}  e6 {[%clk 0:00:14]} 34. Ng1 {[%clk 0:00:08]}  h3 {[%clk 0:00:07]} 35. Qe2 {[%clk 0:00:08]}  Qb1 {[%clk 0:00:07]} 36. Qd2 {[%clk 0:00:09]}  Bf8 {[%clk 0:00:05]} 37. Nxh3 {[%clk 0:00:09]}  Qh1 {[%clk 0:00:04]} 38. Ng5+ {[%clk 0:00:09]}  Kg7 {[%clk 0:00:04]} 39. Ke2 {[%clk 0:00:09]}  Qxh2+ {[%clk 0:00:03]} 40. Kd3 {[%clk 0:00:10]}  Qh1 {[%clk 0:00:01]} 41. Qf2 {[%clk 0:00:09]}  Be7 {[%clk 0:00:02]} 42. Kc4 {[%clk 0:00:09]}  Bxg5 {[%clk 0:00:01]} 43. fxg5 {[%clk 0:00:09]}  f4 {[%clk 0:00:02]} 44. Bxb6 {[%clk 0:00:09]} 1-0


[Site "https://www.chess.com"]

[Event "Titled Tuesday Blitz May 4 2021"]
[White "Rodriguez, Santiago"]
[Black "Lopez Del Alamo, Antonio"]
[WhiteFideId "3000591"]
[BlackFideId "2227339"]
[WhiteElo "2256"]
[BlackElo "2098"]
[Result "1-0"]
[Round "07"]
[TimeControl "180+1"]
[Date "2021.05.04"]
[WhiteClock "0:00:17"]
[BlackClock "0:00:22"]

1. d4 {[%clk 0:02:58]}  Nf6 {[%clk 0:02:58]} 2. Bg5 {[%clk 0:02:58]}  Ne4 {[%clk 0:02:58]} 3. Bf4 {[%clk 0:02:58]}  c5 {[%clk 0:02:58]} 4. f3 {[%clk 0:02:58]}  Qa5+ {[%clk 0:02:58]} 5. c3 {[%clk 0:02:58]}  Nf6 {[%clk 0:02:58]} 6. Nd2 {[%clk 0:02:59]}  cxd4 {[%clk 0:02:57]} 7. Nb3 {[%clk 0:03:00]}  Qb6 {[%clk 0:02:58]} 8. Qxd4 {[%clk 0:03:00]}  Nc6 {[%clk 0:02:58]} 9. Qxb6 {[%clk 0:03:00]}  axb6 {[%clk 0:02:58]} 10. Nd4 {[%clk 0:03:01]}  e5 {[%clk 0:02:50]} 11. Nxc6 {[%clk 0:03:01]}  exf4 {[%clk 0:02:50]} 12. Nd4 {[%clk 0:03:01]}  Bc5 {[%clk 0:02:45]} 13. Nh3 {[%clk 0:02:57]}  Bxd4 {[%clk 0:02:40]} 14. cxd4 {[%clk 0:02:56]}  Nd5 {[%clk 0:02:41]} 15. a3 {[%clk 0:02:52]}  d6 {[%clk 0:02:39]} 16. g3 {[%clk 0:02:50]}  Ne3 {[%clk 0:02:32]} 17. Kf2 {[%clk 0:02:44]}  Nxf1 {[%clk 0:02:30]} 18. Nxf4 {[%clk 0:02:39]}  Nd2 {[%clk 0:02:29]} 19. Nd5 {[%clk 0:02:34]}  O-O {[%clk 0:02:21]} 20. Nxb6 {[%clk 0:02:31]}  Ra6 {[%clk 0:02:15]} 21. Nd5 {[%clk 0:02:29]}  Be6 {[%clk 0:02:14]} 22. Nb4 {[%clk 0:02:27]}  Ra5 {[%clk 0:02:13]} 23. Rac1 {[%clk 0:02:24]}  d5 {[%clk 0:02:07]} 24. Rc7 {[%clk 0:02:20]}  Rb5 {[%clk 0:02:05]} 25. Rhc1 {[%clk 0:02:09]}  Nb3 {[%clk 0:02:02]} 26. Rd1 {[%clk 0:02:08]}  Na5 {[%clk 0:01:59]} 27. e4 {[%clk 0:02:07]}  dxe4 {[%clk 0:01:46]} 28. fxe4 {[%clk 0:02:07]}  Bg4 {[%clk 0:01:45]} 29. Rd2 {[%clk 0:01:49]}  Re8 {[%clk 0:01:39]} 30. Ke3 {[%clk 0:01:45]}  Nc6 {[%clk 0:01:23]} 31. Nxc6 {[%clk 0:01:42]}  bxc6 {[%clk 0:01:23]} 32. Rxc6 {[%clk 0:01:43]}  Bf5 {[%clk 0:01:17]} 33. e5 {[%clk 0:01:37]}  Be6 {[%clk 0:01:15]} 34. Rc5 {[%clk 0:01:33]}  Rb3+ {[%clk 0:01:13]} 35. Ke4 {[%clk 0:01:31]}  f5+ {[%clk 0:01:10]} 36. Kf4 {[%clk 0:01:09]}  h6 {[%clk 0:01:08]} 37. h4 {[%clk 0:01:08]}  Ra8 {[%clk 0:01:01]} 38. Rc3 {[%clk 0:00:43]}  Rxc3 {[%clk 0:01:00]} 39. bxc3 {[%clk 0:00:44]}  Rxa3 {[%clk 0:00:57]} 40. d5 {[%clk 0:00:44]}  Bc8 {[%clk 0:00:57]} 41. c4 {[%clk 0:00:34]}  Ra4 {[%clk 0:00:54]} 42. Rd4 {[%clk 0:00:34]}  Ba6 {[%clk 0:00:54]} 43. d6 {[%clk 0:00:33]}  Bc8 {[%clk 0:00:38]} 44. d7 {[%clk 0:00:30]}  Bxd7 {[%clk 0:00:36]} 45. Rxd7 {[%clk 0:00:31]}  Rxc4+ {[%clk 0:00:36]} 46. Kxf5 {[%clk 0:00:32]}  Rc3 {[%clk 0:00:35]} 47. g4 {[%clk 0:00:31]}  Rf3+ {[%clk 0:00:33]} 48. Kg6 {[%clk 0:00:31]}  Rf8 {[%clk 0:00:33]} 49. Re7 {[%clk 0:00:17]}  Kh8 {[%clk 0:00:31]} 50. h5 {[%clk 0:00:15]}  Ra8 {[%clk 0:00:27]} 51. e6 {[%clk 0:00:12]}  Rf8 {[%clk 0:00:27]} 52. Rf7 {[%clk 0:00:12]}  Re8 {[%clk 0:00:24]} 53. e7 {[%clk 0:00:12]}  Kg8 {[%clk 0:00:16]} 54. Rxg7+ {[%clk 0:00:13]}  Kh8 {[%clk 0:00:16]} 55. Rf7 {[%clk 0:00:13]}  Kg8 {[%clk 0:00:16]} 56. Rf8+ {[%clk 0:00:13]}  Rxf8 {[%clk 0:00:17]} 57. exf8=Q+ {[%clk 0:00:13]}  Kxf8 {[%clk 0:00:17]} 58. Kxh6 {[%clk 0:00:13]}  Kg8 {[%clk 0:00:18]} 59. Kg6 {[%clk 0:00:14]}  Kh8 {[%clk 0:00:19]} 60. g5 {[%clk 0:00:14]}  Kg8 {[%clk 0:00:20]} 61. Kf6 {[%clk 0:00:14]}  Kh8 {[%clk 0:00:20]} 62. g6 {[%clk 0:00:14]}  Kg8 {[%clk 0:00:21]} 63. g7 {[%clk 0:00:15]}  Kh7 {[%clk 0:00:21]} 64. Kf7 {[%clk 0:00:15]}  Kh6 {[%clk 0:00:21]} 65. g8=Q {[%clk 0:00:15]}  Kxh5 {[%clk 0:00:22]} 66. Qg3 {[%clk 0:00:16]}  Kh6 {[%clk 0:00:22]} 67. Qg6# {[%clk 0:00:17]} 1-0


[Site "https://www.chess.com"]

[Event "Titled Tuesday Blitz May 4 2021"]
[White "Ronka, Erik"]
[Black "Kanyamarala, Tarun"]
[WhiteFideId "505080"]
[BlackFideId "45004714"]
[WhiteElo "2264"]
[BlackElo "2086"]
[Result "1-0"]
[Round "07"]
[TimeControl "180+1"]
[Date "2021.05.04"]
[WhiteClock "0:00:11"]
[BlackClock "0:00:05"]

1. d4 {[%clk 0:03:00]}  f5 {[%clk 0:02:57]} 2. g3 {[%clk 0:03:00]}  Nf6 {[%clk 0:02:55]} 3. Bg2 {[%clk 0:02:59]}  g6 {[%clk 0:02:55]} 4. c3 {[%clk 0:02:56]}  Bg7 {[%clk 0:02:56]} 5. Qb3 {[%clk 0:02:54]}  e6 {[%clk 0:02:46]} 6. Nh3 {[%clk 0:02:46]}  O-O {[%clk 0:02:44]} 7. Nf4 {[%clk 0:02:46]}  Nc6 {[%clk 0:02:40]} 8. h4 {[%clk 0:02:45]}  Qe8 {[%clk 0:02:32]} 9. d5 {[%clk 0:02:39]}  Ne5 {[%clk 0:02:27]} 10. Na3 {[%clk 0:02:31]}  c6 {[%clk 0:02:19]} 11. dxe6 {[%clk 0:02:29]}  d5 {[%clk 0:02:19]} 12. c4 {[%clk 0:02:19]}  d4 {[%clk 0:01:59]} 13. c5 {[%clk 0:01:52]}  Qe7 {[%clk 0:01:52]} 14. Qb4 {[%clk 0:01:20]}  Rd8 {[%clk 0:01:16]} 15. Bd2 {[%clk 0:01:11]}  a5 {[%clk 0:01:06]} 16. Qb3 {[%clk 0:01:00]}  a4 {[%clk 0:01:06]} 17. Qb4 {[%clk 0:00:59]}  Bxe6 {[%clk 0:01:04]} 18. Nxe6 {[%clk 0:00:58]}  Qxe6 {[%clk 0:01:04]} 19. O-O {[%clk 0:00:50]}  Rd7 {[%clk 0:00:57]} 20. Rfc1 {[%clk 0:00:46]}  Ne4 {[%clk 0:00:54]} 21. Be1 {[%clk 0:00:44]}  d3 {[%clk 0:00:44]} 22. Bxe4 {[%clk 0:00:36]}  fxe4 {[%clk 0:00:42]} 23. Qxe4 {[%clk 0:00:35]}  d2 {[%clk 0:00:36]} 24. Bxd2 {[%clk 0:00:35]}  Rxd2 {[%clk 0:00:35]} 25. Nc4 {[%clk 0:00:21]}  Rd1+ {[%clk 0:00:11]} 26. Rxd1 {[%clk 0:00:19]}  Qxc4 {[%clk 0:00:11]} 27. Qe3 {[%clk 0:00:14]}  Rf8 {[%clk 0:00:09]} 28. Rac1 {[%clk 0:00:13]}  Qf7 {[%clk 0:00:08]} 29. Rd6 {[%clk 0:00:13]}  Ng4 {[%clk 0:00:09]} 30. Qf3 {[%clk 0:00:13]}  Nf6 {[%clk 0:00:05]} 31. Rcd1 {[%clk 0:00:12]}  Nd5 {[%clk 0:00:04]} 32. Qxf7+ {[%clk 0:00:11]}  Rxf7 {[%clk 0:00:04]} 33. e4 {[%clk 0:00:11]}  Ne7 {[%clk 0:00:04]} 34. b3 {[%clk 0:00:11]}  axb3 {[%clk 0:00:02]} 35. axb3 {[%clk 0:00:12]}  Be5 {[%clk 0:00:03]} 36. Rd8+ {[%clk 0:00:12]}  Kg7 {[%clk 0:00:03]} 37. R8d7 {[%clk 0:00:13]}  Bc3 {[%clk 0:00:04]} 38. Rxb7 {[%clk 0:00:11]}  Kf6 {[%clk 0:00:02]} 39. Rdd7 {[%clk 0:00:11]}  Ke5 {[%clk 0:00:03]} 40. Rxe7+ {[%clk 0:00:10]}  Rxe7 {[%clk 0:00:03]} 41. Rxe7+ {[%clk 0:00:11]}  Kd4 {[%clk 0:00:04]} 42. Rxh7 {[%clk 0:00:11]}  Kxe4 {[%clk 0:00:04]} 43. Rc7 {[%clk 0:00:11]}  Kd5 {[%clk 0:00:04]} 44. Rf7 {[%clk 0:00:10]}  Kxc5 {[%clk 0:00:05]} 45. g4 {[%clk 0:00:11]} 1-0


[Site "https://www.chess.com"]

[Event "Titled Tuesday Blitz May 4 2021"]
[White "Roque Sola, Gisela"]
[Black "Nadeev, Sergey"]
[WhiteFideId "5120241"]
[BlackFideId "4180038"]
[WhiteElo "1863"]
[BlackElo "2369"]
[Result "1/2-1/2"]
[Round "07"]
[TimeControl "180+1"]
[Date "2021.05.04"]
[WhiteClock "0:00:10"]
[BlackClock "0:01:39"]

1. c4 {[%clk 0:03:00]}  e5 {[%clk 0:02:49]} 2. Nc3 {[%clk 0:02:59]}  Nf6 {[%clk 0:02:50]} 3. Nf3 {[%clk 0:02:58]}  Nc6 {[%clk 0:02:49]} 4. g3 {[%clk 0:02:58]}  d5 {[%clk 0:02:49]} 5. cxd5 {[%clk 0:02:57]}  Nxd5 {[%clk 0:02:50]} 6. d3 {[%clk 0:02:52]}  Be7 {[%clk 0:02:46]} 7. Bg2 {[%clk 0:02:51]}  Nb6 {[%clk 0:02:44]} 8. O-O {[%clk 0:02:50]}  O-O {[%clk 0:02:44]} 9. a3 {[%clk 0:02:49]}  Be6 {[%clk 0:02:44]} 10. b4 {[%clk 0:02:44]}  f5 {[%clk 0:02:44]} 11. b5 {[%clk 0:02:34]}  Nd4 {[%clk 0:02:44]} 12. Nxe5 {[%clk 0:02:33]}  Bf6 {[%clk 0:02:35]} 13. f4 {[%clk 0:01:48]}  Nb3 {[%clk 0:02:31]} 14. Rb1 {[%clk 0:01:48]}  Qd4+ {[%clk 0:02:30]} 15. e3 {[%clk 0:01:35]}  Qxc3 {[%clk 0:02:30]} 16. Bb2 {[%clk 0:01:34]}  Qa5 {[%clk 0:02:29]} 17. Bxb7 {[%clk 0:01:22]}  Rae8 {[%clk 0:02:28]} 18. Bc6 {[%clk 0:01:20]}  Rd8 {[%clk 0:02:26]} 19. d4 {[%clk 0:01:13]}  Qa4 {[%clk 0:02:19]} 20. Bg2 {[%clk 0:00:33]}  Bxe5 {[%clk 0:02:14]} 21. fxe5 {[%clk 0:00:29]}  Na5 {[%clk 0:02:08]} 22. Qc1 {[%clk 0:00:23]}  Qc4 {[%clk 0:02:01]} 23. Qxc4 {[%clk 0:00:20]}  Naxc4 {[%clk 0:02:01]} 24. Rfc1 {[%clk 0:00:19]}  Nd2 {[%clk 0:01:54]} 25. Ra1 {[%clk 0:00:18]}  Nb3 {[%clk 0:01:54]} 26. Rxc7 {[%clk 0:00:17]}  Nxa1 {[%clk 0:01:54]} 27. Bxa1 {[%clk 0:00:14]}  Rf7 {[%clk 0:01:49]} 28. Rc6 {[%clk 0:00:14]}  Bd5 {[%clk 0:01:48]} 29. Bxd5 {[%clk 0:00:12]}  Nxd5 {[%clk 0:01:47]} 30. a4 {[%clk 0:00:11]}  Nxe3 {[%clk 0:01:45]} 31. a5 {[%clk 0:00:10]}  Rb7 {[%clk 0:01:40]} 32. b6 {[%clk 0:00:09]}  axb6 {[%clk 0:01:40]} 33. axb6 {[%clk 0:00:10]}  Nd5 {[%clk 0:01:39]} 34. e6 {[%clk 0:00:10]} 1/2-1/2


[Site "https://www.chess.com"]

[Event "Titled Tuesday Blitz May 4 2021"]
[White "Royal, Shreyas"]
[Black "Degtiarev, Evgeny"]
[WhiteFideId "448869"]
[BlackFideId "4149610"]
[WhiteElo "1931"]
[BlackElo "2218"]
[Result "1-0"]
[Round "07"]
[TimeControl "180+1"]
[Date "2021.05.04"]
[WhiteClock "0:01:36"]
[BlackClock "0:00:04"]

1. d4 {[%clk 0:03:00]}  d5 {[%clk 0:02:57]} 2. c4 {[%clk 0:03:01]}  c6 {[%clk 0:02:58]} 3. Nf3 {[%clk 0:03:01]}  Nf6 {[%clk 0:02:57]} 4. Nc3 {[%clk 0:03:01]}  a6 {[%clk 0:02:56]} 5. c5 {[%clk 0:02:59]}  Bf5 {[%clk 0:02:54]} 6. Bf4 {[%clk 0:02:58]}  Nbd7 {[%clk 0:02:52]} 7. h3 {[%clk 0:02:57]}  Ne4 {[%clk 0:02:36]} 8. e3 {[%clk 0:02:55]}  e6 {[%clk 0:02:24]} 9. Bd3 {[%clk 0:02:52]}  Be7 {[%clk 0:02:12]} 10. Qc2 {[%clk 0:02:52]}  Nxc3 {[%clk 0:01:40]} 11. Bxf5 {[%clk 0:02:45]}  exf5 {[%clk 0:01:31]} 12. bxc3 {[%clk 0:02:45]}  g6 {[%clk 0:01:29]} 13. g4 {[%clk 0:02:45]}  fxg4 {[%clk 0:01:20]} 14. hxg4 {[%clk 0:02:46]}  Nf6 {[%clk 0:01:20]} 15. Be5 {[%clk 0:02:46]}  Rg8 {[%clk 0:01:12]} 16. g5 {[%clk 0:02:35]}  Ne4 {[%clk 0:01:10]} 17. Rxh7 {[%clk 0:02:30]}  Nxg5 {[%clk 0:01:09]} 18. Nxg5 {[%clk 0:02:31]}  Bxg5 {[%clk 0:01:09]} 19. O-O-O {[%clk 0:02:29]}  Qa5 {[%clk 0:00:57]} 20. Qb2 {[%clk 0:02:26]}  Qb5 {[%clk 0:00:58]} 21. Rdh1 {[%clk 0:02:20]}  Be7 {[%clk 0:00:50]} 22. Rh8 {[%clk 0:02:12]}  O-O-O {[%clk 0:00:49]} 23. R8h7 {[%clk 0:02:10]}  Rdf8 {[%clk 0:00:39]} 24. Qxb5 {[%clk 0:02:10]}  axb5 {[%clk 0:00:38]} 25. a4 {[%clk 0:02:07]}  bxa4 {[%clk 0:00:35]} 26. Kb2 {[%clk 0:02:07]}  Kd7 {[%clk 0:00:34]} 27. Ka3 {[%clk 0:02:05]}  Ke6 {[%clk 0:00:33]} 28. Kxa4 {[%clk 0:02:04]}  Ra8+ {[%clk 0:00:30]} 29. Kb3 {[%clk 0:02:05]}  f6 {[%clk 0:00:26]} 30. Bc7 {[%clk 0:02:04]}  g5 {[%clk 0:00:22]} 31. Rb1 {[%clk 0:01:59]}  g4 {[%clk 0:00:17]} 32. Bg3 {[%clk 0:01:54]}  Ra7 {[%clk 0:00:14]} 33. Rb2 {[%clk 0:01:52]}  Rga8 {[%clk 0:00:14]} 34. Kc2 {[%clk 0:01:53]}  Ra2 {[%clk 0:00:13]} 35. Rh4 {[%clk 0:01:49]}  f5 {[%clk 0:00:13]} 36. Rh6+ {[%clk 0:01:49]}  Kd7 {[%clk 0:00:13]} 37. Rh7 {[%clk 0:01:49]}  Rxb2+ {[%clk 0:00:13]} 38. Kxb2 {[%clk 0:01:49]}  Ke6 {[%clk 0:00:14]} 39. Rh1 {[%clk 0:01:43]}  Ra4 {[%clk 0:00:13]} 40. Rb1 {[%clk 0:01:42]}  Ra7 {[%clk 0:00:11]} 41. Kc2 {[%clk 0:01:42]}  Ra2+ {[%clk 0:00:09]} 42. Kd3 {[%clk 0:01:42]}  Ra7 {[%clk 0:00:08]} 43. Rb2 {[%clk 0:01:41]}  Bd8 {[%clk 0:00:03]} 44. Bb8 {[%clk 0:01:41]}  Ra3 {[%clk 0:00:02]} 45. Rxb7 {[%clk 0:01:41]}  Ba5 {[%clk 0:00:02]} 46. Rh7 {[%clk 0:01:38]}  Rxc3+ {[%clk 0:00:02]} 47. Ke2 {[%clk 0:01:38]}  Rc2+ {[%clk 0:00:02]} 48. Kf1 {[%clk 0:01:39]}  g3 {[%clk 0:00:03]} 49. Bxg3 {[%clk 0:01:37]}  Rc1+ {[%clk 0:00:03]} 50. Kg2 {[%clk 0:01:37]}  Rc2 {[%clk 0:00:04]} 51. Rh6+ {[%clk 0:01:37]}  Kf7 {[%clk 0:00:04]} 52. Rxc6 {[%clk 0:01:37]}  Bb4 {[%clk 0:00:04]} 53. Rb6 {[%clk 0:01:36]} 1-0


[Site "https://www.chess.com"]